[Event "November 21 Late 2023"]
[Site "https://www.chess.com"]
[Date "2023.11.21"]
[Round "7"]
[White "Kovalev, Vladislav"]
[Black "Esipenko, Andrey"]
[Result "1-0"]
[Board "9"]
[TimeControl "180+1"]
[WhiteFideId "13504398"]
[BlackFideId "24175439"]
[WhiteElo "2539"]
[BlackElo "2615"]
[WhiteTeam "FID"]
[BlackTeam "FID"]
[WhiteClock "0:00:03"]
[BlackClock "0:00:00"]

1. e4 {[%clk 0:03:00]}  Nc6 {[%clk 0:02:53]} 2. Nc3 {[%clk 0:02:59]}  d6 {[%clk 0:02:51]} 3. d4 {[%clk 0:02:59]}  Nf6 {[%clk 0:02:50]} 4. Nf3 {[%clk 0:02:43]}  g6 {[%clk 0:02:30]} 5. Be2 {[%clk 0:02:32]}  Bg7 {[%clk 0:01:30]} 6. O-O {[%clk 0:02:32]}  O-O {[%clk 0:01:31]} 7. Re1 {[%clk 0:02:32]}  e5 {[%clk 0:01:30]} 8. dxe5 {[%clk 0:02:20]}  Nxe5 {[%clk 0:01:30]} 9. Nxe5 {[%clk 0:02:20]}  dxe5 {[%clk 0:01:28]} 10. Qxd8 {[%clk 0:02:19]}  Rxd8 {[%clk 0:01:28]} 11. Be3 {[%clk 0:02:20]}  a6 {[%clk 0:01:25]} 12. a4 {[%clk 0:02:14]}  Be6 {[%clk 0:01:25]} 13. Red1 {[%clk 0:02:10]}  Bf8 {[%clk 0:01:24]} 14. f3 {[%clk 0:02:08]}  Kg7 {[%clk 0:01:15]} 15. a5 {[%clk 0:01:37]}  Bb4 {[%clk 0:01:07]} 16. Rxd8 {[%clk 0:01:23]}  Rxd8 {[%clk 0:01:07]} 17. Nb1 {[%clk 0:01:22]}  Nd7 {[%clk 0:01:04]} 18. Nd2 {[%clk 0:01:09]}  Bc5 {[%clk 0:00:40]} 19. Kf2 {[%clk 0:01:06]}  f5 {[%clk 0:00:37]} 20. g3 {[%clk 0:00:08]}  Kf6 {[%clk 0:00:00]} 21. c3 {[%clk 0:00:03]} 1-0

[Event "November 21 Late 2023"]
[Site "https://www.chess.com"]
[Date "2023.11.21"]
[Round "7"]
[White "Szpar, Milosz"]
[Black "Muradli, Mahammad"]
[Result "1-0"]
[Board "10"]
[TimeControl "180+1"]
[WhiteFideId "1184989"]
[BlackFideId "13409301"]
[WhiteElo "2446"]
[BlackElo "2551"]
[WhiteTeam "POL"]
[BlackTeam "AZE"]
[WhiteClock "0:00:05"]
[BlackClock "0:00:00"]

1. Nf3 {[%clk 0:03:00]}  Nf6 {[%clk 0:02:59]} 2. c4 {[%clk 0:03:00]}  g6 {[%clk 0:02:59]} 3. b3 {[%clk 0:03:01]}  Bg7 {[%clk 0:03:00]} 4. Bb2 {[%clk 0:03:01]}  O-O {[%clk 0:03:01]} 5. g3 {[%clk 0:03:02]}  c5 {[%clk 0:02:57]} 6. Bg2 {[%clk 0:03:02]}  Nc6 {[%clk 0:02:58]} 7. O-O {[%clk 0:03:02]}  d6 {[%clk 0:02:58]} 8. e3 {[%clk 0:03:01]}  Bd7 {[%clk 0:02:42]} 9. d4 {[%clk 0:02:59]}  cxd4 {[%clk 0:02:43]} 10. exd4 {[%clk 0:02:57]}  d5 {[%clk 0:02:44]} 11. Nc3 {[%clk 0:02:53]}  Bg4 {[%clk 0:02:40]} 12. Ne2 {[%clk 0:02:38]}  Qb6 {[%clk 0:02:26]} 13. c5 {[%clk 0:02:32]}  Qc7 {[%clk 0:02:18]} 14. h3 {[%clk 0:02:29]}  Bxf3 {[%clk 0:02:18]} 15. Bxf3 {[%clk 0:02:30]}  Rad8 {[%clk 0:02:18]} 16. Bg2 {[%clk 0:02:22]}  Nd7 {[%clk 0:02:09]} 17. Nf4 {[%clk 0:02:19]}  Nxc5 {[%clk 0:01:42]} 18. Nxd5 {[%clk 0:02:19]}  Qd7 {[%clk 0:01:30]} 19. Rc1 {[%clk 0:01:44]}  Ne6 {[%clk 0:01:21]} 20. Re1 {[%clk 0:01:43]}  Rfe8 {[%clk 0:01:16]} 21. Rc4 {[%clk 0:01:31]}  Na5 {[%clk 0:00:45]} 22. Ra4 {[%clk 0:01:24]}  Nc6 {[%clk 0:00:44]} 23. Rc4 {[%clk 0:01:22]}  Nf8 {[%clk 0:00:39]} 24. Qf3 {[%clk 0:01:04]}  Qd6 {[%clk 0:00:29]} 25. Rd1 {[%clk 0:00:59]}  Nd7 {[%clk 0:00:23]} 26. Rcc1 {[%clk 0:00:53]}  e6 {[%clk 0:00:17]} 27. Ne3 {[%clk 0:00:52]}  Qb8 {[%clk 0:00:08]} 28. Ng4 {[%clk 0:00:29]}  h5 {[%clk 0:00:06]} 29. Ne3 {[%clk 0:00:29]}  Nb6 {[%clk 0:00:05]} 30. Qe4 {[%clk 0:00:21]}  Nd5 {[%clk 0:00:04]} 31. Nc4 {[%clk 0:00:20]}  a6 {[%clk 0:00:03]} 32. Qe2 {[%clk 0:00:18]}  Nde7 {[%clk 0:00:03]} 33. Ne5 {[%clk 0:00:15]}  Nxe5 {[%clk 0:00:03]} 34. dxe5 {[%clk 0:00:16]}  Rxd1+ {[%clk 0:00:04]} 35. Rxd1 {[%clk 0:00:16]}  Rc8 {[%clk 0:00:03]} 36. Rd7 {[%clk 0:00:14]}  Nc6 {[%clk 0:00:03]} 37. Qf3 {[%clk 0:00:13]}  Rf8 {[%clk 0:00:02]} 38. Qf4 {[%clk 0:00:07]}  Bxe5 {[%clk 0:00:03]} 39. Bxe5 {[%clk 0:00:06]}  Nxe5 {[%clk 0:00:03]} 40. Rxb7 {[%clk 0:00:06]}  Qd6 {[%clk 0:00:04]} 41. Kh2 {[%clk 0:00:06]}  a5 {[%clk 0:00:03]} 42. Rb5 {[%clk 0:00:04]}  f6 {[%clk 0:00:03]} 43. Rxa5 {[%clk 0:00:05]}  g5 {[%clk 0:00:03]} 44. Qe3 {[%clk 0:00:05]}  Kg7 {[%clk 0:00:03]} 45. Ra7+ {[%clk 0:00:05]}  Rf7 {[%clk 0:00:03]} 46. Rxf7+ {[%clk 0:00:05]}  Kxf7 {[%clk 0:00:03]} 47. a4 {[%clk 0:00:06]}  h4 {[%clk 0:00:03]} 48. a5 {[%clk 0:00:05]}  hxg3+ {[%clk 0:00:04]} 49. fxg3 {[%clk 0:00:06]}  Qa3 {[%clk 0:00:03]} 50. Qa7+ {[%clk 0:00:06]}  Kg6 {[%clk 0:00:04]} 51. a6 {[%clk 0:00:05]}  Qa2 {[%clk 0:00:04]} 52. Qb7 {[%clk 0:00:05]}  g4 {[%clk 0:00:02]} 53. a7 {[%clk 0:00:05]}  gxh3 {[%clk 0:00:03]} 54. Kxh3 {[%clk 0:00:05]}  Qe2 {[%clk 0:00:00]} 55. Qe4+ {[%clk 0:00:05]} 1-0

[Event "November 21 Late 2023"]
[Site "https://www.chess.com"]
[Date "2023.11.21"]
[Round "7"]
[White "Bortnyk, Mykola"]
[Black "Troff, Kayden"]
[Result "1-0"]
[Board "14"]
[TimeControl "180+1"]
[WhiteFideId "14120836"]
[BlackFideId "2047896"]
[WhiteElo "2592"]
[BlackElo "2544"]
[WhiteTeam "UKR"]
[BlackTeam "USA"]
[WhiteClock "0:00:29"]
[BlackClock "0:00:01"]

1. e4 {[%clk 0:03:00]}  c5 {[%clk 0:02:59]} 2. Nf3 {[%clk 0:03:00]}  g6 {[%clk 0:02:59]} 3. c3 {[%clk 0:03:00]}  Bg7 {[%clk 0:02:57]} 4. d4 {[%clk 0:03:00]}  cxd4 {[%clk 0:02:58]} 5. cxd4 {[%clk 0:03:01]}  d5 {[%clk 0:02:58]} 6. e5 {[%clk 0:03:02]}  Nc6 {[%clk 0:02:58]} 7. Bb5 {[%clk 0:03:02]}  Nh6 {[%clk 0:02:58]} 8. Bxc6+ {[%clk 0:03:00]}  bxc6 {[%clk 0:02:59]} 9. O-O {[%clk 0:03:01]}  O-O {[%clk 0:02:59]} 10. Nbd2 {[%clk 0:03:01]}  f6 {[%clk 0:02:54]} 11. Nb3 {[%clk 0:03:00]}  Bg4 {[%clk 0:02:53]} 12. e6 {[%clk 0:02:45]}  Bxe6 {[%clk 0:02:47]} 13. Re1 {[%clk 0:02:45]}  Bf7 {[%clk 0:02:31]} 14. Nc5 {[%clk 0:02:42]}  Nf5 {[%clk 0:02:28]} 15. Qa4 {[%clk 0:02:41]}  Qc7 {[%clk 0:02:22]} 16. Bd2 {[%clk 0:02:36]}  e5 {[%clk 0:02:20]} 17. Ba5 {[%clk 0:02:30]}  Qe7 {[%clk 0:01:49]} 18. Qxc6 {[%clk 0:02:19]}  e4 {[%clk 0:01:45]} 19. g4 {[%clk 0:02:08]}  Rfc8 {[%clk 0:01:39]} 20. Qa4 {[%clk 0:01:53]}  Nxd4 {[%clk 0:01:30]} 21. Nxd4 {[%clk 0:01:53]}  Qxc5 {[%clk 0:01:29]} 22. Rac1 {[%clk 0:01:53]}  Qxc1 {[%clk 0:01:26]} 23. Rxc1 {[%clk 0:01:54]}  Rxc1+ {[%clk 0:01:26]} 24. Kg2 {[%clk 0:01:55]}  Rc4 {[%clk 0:01:26]} 25. Qd1 {[%clk 0:01:52]}  f5 {[%clk 0:01:16]} 26. Bc3 {[%clk 0:01:49]}  f4 {[%clk 0:01:11]} 27. Qd2 {[%clk 0:01:40]}  f3+ {[%clk 0:01:08]} 28. Kg3 {[%clk 0:01:35]}  Rac8 {[%clk 0:00:59]} 29. h4 {[%clk 0:01:30]}  h6 {[%clk 0:00:57]} 30. Kh3 {[%clk 0:01:16]}  Kh7 {[%clk 0:00:52]} 31. Qf4 {[%clk 0:01:12]}  Kg8 {[%clk 0:00:47]} 32. Nb5 {[%clk 0:01:08]}  d4 {[%clk 0:00:45]} 33. Nd6 {[%clk 0:01:07]}  dxc3 {[%clk 0:00:24]} 34. Qxf7+ {[%clk 0:01:07]}  Kh7 {[%clk 0:00:24]} 35. h5 {[%clk 0:00:55]}  c2 {[%clk 0:00:16]} 36. hxg6+ {[%clk 0:00:53]}  Kh8 {[%clk 0:00:15]} 37. Qe6 {[%clk 0:00:54]}  R4c7 {[%clk 0:00:02]} 38. Nf7+ {[%clk 0:00:53]}  Kg8 {[%clk 0:00:03]} 39. Nd6+ {[%clk 0:00:38]}  Kf8 {[%clk 0:00:03]} 40. Qf5+ {[%clk 0:00:37]}  Kg8 {[%clk 0:00:01]} 41. Qd5+ {[%clk 0:00:31]}  Kf8 {[%clk 0:00:02]} 42. Nxc8 {[%clk 0:00:29]}  Rxc8 {[%clk 0:00:01]} 43. Qf7# {[%clk 0:00:29]} 1-0

[Event "November 21 Late 2023"]
[Site "https://www.chess.com"]
[Date "2023.11.21"]
[Round "7"]
[White "Rasulov, Vugar"]
[Black "Margvelashvili, Giorgi"]
[Result "1-0"]
[Board "16"]
[TimeControl "180+1"]
[WhiteFideId "13402390"]
[BlackFideId "13602926"]
[WhiteElo "2517"]
[BlackElo "2549"]
[WhiteTeam "AZE"]
[BlackTeam "GEO"]
[WhiteClock "0:00:02"]
[BlackClock "0:00:05"]

1. e4 {[%clk 0:03:00]}  c6 {[%clk 0:03:00]} 2. d4 {[%clk 0:03:00]}  d5 {[%clk 0:03:00]} 3. e5 {[%clk 0:03:01]}  Bf5 {[%clk 0:03:00]} 4. Nd2 {[%clk 0:03:01]}  e6 {[%clk 0:03:00]} 5. Nb3 {[%clk 0:03:01]}  Nd7 {[%clk 0:03:00]} 6. Nf3 {[%clk 0:03:01]}  Ne7 {[%clk 0:03:00]} 7. Be2 {[%clk 0:02:58]}  Ng6 {[%clk 0:03:00]} 8. O-O {[%clk 0:02:57]}  f6 {[%clk 0:03:01]} 9. exf6 {[%clk 0:02:47]}  Qxf6 {[%clk 0:03:01]} 10. c4 {[%clk 0:02:43]}  Bd6 {[%clk 0:02:59]} 11. cxd5 {[%clk 0:02:39]}  exd5 {[%clk 0:02:58]} 12. Na5 {[%clk 0:02:27]}  Rb8 {[%clk 0:02:55]} 13. a3 {[%clk 0:02:23]}  O-O {[%clk 0:02:54]} 14. b4 {[%clk 0:02:23]}  Be4 {[%clk 0:02:24]} 15. Ng5 {[%clk 0:02:07]}  Bxg2 {[%clk 0:01:21]} 16. Kxg2 {[%clk 0:02:05]}  Nf4+ {[%clk 0:01:21]} 17. Bxf4 {[%clk 0:01:47]}  Qxf4 {[%clk 0:01:22]} 18. Nf3 {[%clk 0:01:47]}  Qg4+ {[%clk 0:01:20]} 19. Kh1 {[%clk 0:01:48]}  Rxf3 {[%clk 0:01:20]} 20. Bxf3 {[%clk 0:01:46]}  Qf4 {[%clk 0:00:57]} 21. Bxd5+ {[%clk 0:01:44]}  cxd5 {[%clk 0:00:58]} 22. Qh5 {[%clk 0:01:44]}  Nf6 {[%clk 0:00:56]} 23. Qh3 {[%clk 0:01:41]}  b6 {[%clk 0:00:33]} 24. Nc6 {[%clk 0:01:32]}  Re8 {[%clk 0:00:29]} 25. Qg3 {[%clk 0:01:15]}  Qe4+ {[%clk 0:00:17]} 26. Qg2 {[%clk 0:01:15]}  Qh4 {[%clk 0:00:15]} 27. Rae1 {[%clk 0:00:54]}  Rf8 {[%clk 0:00:14]} 28. Ne7+ {[%clk 0:00:46]}  Bxe7 {[%clk 0:00:14]} 29. Rxe7 {[%clk 0:00:47]}  Ng4 {[%clk 0:00:14]} 30. Re2 {[%clk 0:00:42]}  Rf5 {[%clk 0:00:13]} 31. f3 {[%clk 0:00:39]}  Nf6 {[%clk 0:00:11]} 32. Re5 {[%clk 0:00:37]}  Rf4 {[%clk 0:00:07]} 33. Qg3 {[%clk 0:00:27]}  Rxd4 {[%clk 0:00:07]} 34. Qxh4 {[%clk 0:00:26]}  Rxh4 {[%clk 0:00:07]} 35. Rc1 {[%clk 0:00:26]}  Rd4 {[%clk 0:00:07]} 36. Re7 {[%clk 0:00:24]}  h6 {[%clk 0:00:06]} 37. Rxa7 {[%clk 0:00:22]}  Nh5 {[%clk 0:00:07]} 38. Rcc7 {[%clk 0:00:16]}  Rd2 {[%clk 0:00:06]} 39. Kg1 {[%clk 0:00:16]}  d4 {[%clk 0:00:06]} 40. Rd7 {[%clk 0:00:15]}  d3 {[%clk 0:00:07]} 41. a4 {[%clk 0:00:15]}  Kh8 {[%clk 0:00:07]} 42. Ra8+ {[%clk 0:00:08]}  Kh7 {[%clk 0:00:06]} 43. Rf8 {[%clk 0:00:09]}  Kg6 {[%clk 0:00:05]} 44. a5 {[%clk 0:00:09]}  bxa5 {[%clk 0:00:06]} 45. bxa5 {[%clk 0:00:10]}  Kg5 {[%clk 0:00:06]} 46. a6 {[%clk 0:00:08]}  Ra2 {[%clk 0:00:04]} 47. Rd5+ {[%clk 0:00:03]}  Kh4 {[%clk 0:00:04]} 48. Rxd3 {[%clk 0:00:02]}  g5 {[%clk 0:00:04]} 49. Rd4+ {[%clk 0:00:02]}  Nf4 {[%clk 0:00:03]} 50. Rdxf4+ {[%clk 0:00:02]}  gxf4 {[%clk 0:00:04]} 51. Rf6 {[%clk 0:00:02]}  Kh3 {[%clk 0:00:05]} 52. Rxh6# {[%clk 0:00:02]} 1-0

[Event "November 21 Late 2023"]
[Site "https://www.chess.com"]
[Date "2023.11.21"]
[Round "7"]
[White "Remizov, Yaroslav"]
[Black "Wadsworth, Matthew J"]
[Result "1-0"]
[Board "20"]
[TimeControl "180+1"]
[WhiteFideId "34134015"]
[BlackFideId "415804"]
[WhiteElo "2420"]
[BlackElo "2266"]
[WhiteTeam "RUS"]
[BlackTeam "ENG"]
[WhiteClock "0:01:06"]
[BlackClock "0:00:00"]

1. e4 {[%clk 0:03:00]}  e6 {[%clk 0:02:58]} 2. Nc3 {[%clk 0:03:00]}  d5 {[%clk 0:02:59]} 3. g3 {[%clk 0:03:01]}  Nf6 {[%clk 0:02:57]} 4. Bg2 {[%clk 0:03:01]}  d4 {[%clk 0:02:50]} 5. Nce2 {[%clk 0:03:01]}  c5 {[%clk 0:02:47]} 6. d3 {[%clk 0:03:02]}  Nc6 {[%clk 0:02:47]} 7. f4 {[%clk 0:03:03]}  e5 {[%clk 0:02:40]} 8. h3 {[%clk 0:03:02]}  Bd6 {[%clk 0:02:37]} 9. Nf3 {[%clk 0:03:01]}  Be6 {[%clk 0:02:19]} 10. f5 {[%clk 0:03:01]}  Bd7 {[%clk 0:02:19]} 11. O-O {[%clk 0:03:01]}  Qc7 {[%clk 0:02:14]} 12. c4 {[%clk 0:03:01]}  O-O-O {[%clk 0:02:08]} 13. a3 {[%clk 0:03:02]}  Kb8 {[%clk 0:02:05]} 14. Bd2 {[%clk 0:03:02]}  Ng8 {[%clk 0:01:57]} 15. b4 {[%clk 0:02:58]}  cxb4 {[%clk 0:01:56]} 16. axb4 {[%clk 0:02:58]}  Bxb4 {[%clk 0:01:48]} 17. Bxb4 {[%clk 0:02:55]}  Nxb4 {[%clk 0:01:48]} 18. Qb3 {[%clk 0:02:55]}  a5 {[%clk 0:01:42]} 19. Rfb1 {[%clk 0:02:53]}  Ne7 {[%clk 0:01:35]} 20. Nd2 {[%clk 0:02:29]}  f6 {[%clk 0:01:23]} 21. Nc1 {[%clk 0:02:27]}  Nec6 {[%clk 0:01:16]} 22. c5 {[%clk 0:02:26]}  Be8 {[%clk 0:01:05]} 23. Qa4 {[%clk 0:02:27]}  Na7 {[%clk 0:00:53]} 24. Qxa5 {[%clk 0:02:23]}  Qxa5 {[%clk 0:00:52]} 25. Rxa5 {[%clk 0:02:24]}  Nc2 {[%clk 0:00:41]} 26. Nc4 {[%clk 0:02:19]}  Ne3 {[%clk 0:00:30]} 27. Nd6 {[%clk 0:02:12]}  Bc6 {[%clk 0:00:28]} 28. Nb3 {[%clk 0:02:10]}  Nc8 {[%clk 0:00:23]} 29. Nf7 {[%clk 0:01:59]}  Kc7 {[%clk 0:00:23]} 30. Nxh8 {[%clk 0:01:54]}  Rxh8 {[%clk 0:00:22]} 31. Ra8 {[%clk 0:01:54]}  g6 {[%clk 0:00:19]} 32. Na5 {[%clk 0:01:44]}  gxf5 {[%clk 0:00:17]} 33. Nxc6 {[%clk 0:01:43]}  Kxc6 {[%clk 0:00:17]} 34. exf5+ {[%clk 0:01:41]}  Nxg2 {[%clk 0:00:17]} 35. Kxg2 {[%clk 0:01:42]}  Re8 {[%clk 0:00:12]} 36. Rb8 {[%clk 0:01:40]}  Nd6 {[%clk 0:00:12]} 37. Rxe8 {[%clk 0:01:20]}  Nxe8 {[%clk 0:00:12]} 38. Rb6+ {[%clk 0:01:21]}  Kxc5 {[%clk 0:00:12]} 39. Rxb7 {[%clk 0:01:21]}  Nd6 {[%clk 0:00:12]} 40. Rxh7 {[%clk 0:01:20]}  Nxf5 {[%clk 0:00:12]} 41. h4 {[%clk 0:01:20]}  Kb4 {[%clk 0:00:11]} 42. Rc7 {[%clk 0:01:18]}  Nd6 {[%clk 0:00:07]} 43. h5 {[%clk 0:01:17]}  e4 {[%clk 0:00:06]} 44. dxe4 {[%clk 0:01:16]}  d3 {[%clk 0:00:07]} 45. Kf3 {[%clk 0:01:13]}  Nb5 {[%clk 0:00:04]} 46. Rd7 {[%clk 0:01:06]}  Kc3 {[%clk 0:00:00]} 47. Ke3 {[%clk 0:01:06]} 1-0

[Event "November 21 Late 2023"]
[Site "https://www.chess.com"]
[Date "2023.11.21"]
[Round "7"]
[White "Koksal, Ege"]
[Black "Paravyan, David"]
[Result "0-1"]
[Board "24"]
[TimeControl "180+1"]
[WhiteFideId "6317626"]
[BlackFideId "4194985"]
[WhiteElo "2230"]
[BlackElo "2566"]
[WhiteTeam "TUR"]
[BlackTeam "FID"]
[WhiteClock "0:00:05"]
[BlackClock "0:01:48"]

1. c4 {[%clk 0:02:54]}  e6 {[%clk 0:02:57]} 2. Nc3 {[%clk 0:02:55]}  d5 {[%clk 0:02:57]} 3. d4 {[%clk 0:02:55]}  Nf6 {[%clk 0:02:57]} 4. Nf3 {[%clk 0:02:56]}  c5 {[%clk 0:02:57]} 5. cxd5 {[%clk 0:02:56]}  cxd4 {[%clk 0:02:57]} 6. Qxd4 {[%clk 0:02:42]}  exd5 {[%clk 0:02:56]} 7. e4 {[%clk 0:02:42]}  Nc6 {[%clk 0:02:56]} 8. Bb5 {[%clk 0:02:41]}  dxe4 {[%clk 0:02:56]} 9. Qxd8+ {[%clk 0:02:35]}  Kxd8 {[%clk 0:02:57]} 10. Ng5 {[%clk 0:02:18]}  Be6 {[%clk 0:02:57]} 11. Nxe6+ {[%clk 0:02:16]}  fxe6 {[%clk 0:02:57]} 12. Bxc6 {[%clk 0:02:06]}  bxc6 {[%clk 0:02:58]} 13. Bg5 {[%clk 0:02:06]}  Bb4 {[%clk 0:02:58]} 14. O-O-O+ {[%clk 0:02:05]}  Kc7 {[%clk 0:02:58]} 15. Bxf6 {[%clk 0:02:02]}  gxf6 {[%clk 0:02:59]} 16. Nxe4 {[%clk 0:02:02]}  f5 {[%clk 0:02:57]} 17. Ng5 {[%clk 0:01:52]}  Rae8 {[%clk 0:02:58]} 18. f4 {[%clk 0:01:44]}  Rhg8 {[%clk 0:02:53]} 19. g3 {[%clk 0:01:34]}  e5 {[%clk 0:02:48]} 20. Nxh7 {[%clk 0:01:35]}  Rg6 {[%clk 0:02:27]} 21. Ng5 {[%clk 0:01:12]}  exf4 {[%clk 0:02:14]} 22. gxf4 {[%clk 0:01:13]}  Bd6 {[%clk 0:02:13]} 23. Rhf1 {[%clk 0:01:01]}  Bxf4+ {[%clk 0:02:03]} 24. Rxf4 {[%clk 0:01:01]}  Rxg5 {[%clk 0:02:04]} 25. h4 {[%clk 0:00:47]}  Rg2 {[%clk 0:02:04]} 26. Rd2 {[%clk 0:00:44]}  Rg1+ {[%clk 0:02:00]} 27. Kc2 {[%clk 0:00:31]}  Re5 {[%clk 0:02:01]} 28. Rh2 {[%clk 0:00:22]}  Rc5+ {[%clk 0:02:01]} 29. Kb3 {[%clk 0:00:17]}  Rg3+ {[%clk 0:02:01]} 30. Ka4 {[%clk 0:00:17]}  Kb6 {[%clk 0:02:01]} 31. h5 {[%clk 0:00:08]}  Ra5+ {[%clk 0:02:01]} 32. Kb4 {[%clk 0:00:09]}  c5+ {[%clk 0:02:02]} 33. Kc4 {[%clk 0:00:09]}  Ra4+ {[%clk 0:02:03]} 34. Kd5 {[%clk 0:00:10]}  Rxf4 {[%clk 0:02:04]} 35. h6 {[%clk 0:00:10]}  Rg8 {[%clk 0:02:00]} 36. Ke5 {[%clk 0:00:11]}  Rd4 {[%clk 0:01:56]} 37. Kxf5 {[%clk 0:00:10]}  Rd7 {[%clk 0:01:55]} 38. h7 {[%clk 0:00:09]}  Rh8 {[%clk 0:01:53]} 39. Kg6 {[%clk 0:00:10]}  c4 {[%clk 0:01:53]} 40. Rh5 {[%clk 0:00:09]}  a6 {[%clk 0:01:52]} 41. a3 {[%clk 0:00:09]}  Rdxh7 {[%clk 0:01:46]} 42. Rxh7 {[%clk 0:00:09]}  Rxh7 {[%clk 0:01:46]} 43. Kxh7 {[%clk 0:00:10]}  Kb5 {[%clk 0:01:47]} 44. Kg6 {[%clk 0:00:10]}  Ka4 {[%clk 0:01:48]} 45. Kf5 {[%clk 0:00:05]}  Kb3 {[%clk 0:01:48]} 0-1

[Event "November 21 Late 2023"]
[Site "https://www.chess.com"]
[Date "2023.11.21"]
[Round "7"]
[White "Vlassov, Nikolai"]
[Black "Galchenko, Matvey"]
[Result "0-1"]
[Board "25"]
[TimeControl "180+1"]
[WhiteFideId "4103360"]
[BlackFideId "24175480"]
[WhiteElo "2324"]
[BlackElo "2406"]
[WhiteTeam "FID"]
[BlackTeam "FID"]
[WhiteClock "0:00:37"]
[BlackClock "0:01:17"]

1. e4 {[%clk 0:03:00]}  e6 {[%clk 0:03:00]} 2. d4 {[%clk 0:03:00]}  d5 {[%clk 0:03:00]} 3. e5 {[%clk 0:03:00]}  c5 {[%clk 0:03:00]} 4. c3 {[%clk 0:03:01]}  Qb6 {[%clk 0:03:01]} 5. Nf3 {[%clk 0:03:00]}  Nc6 {[%clk 0:03:02]} 6. Be2 {[%clk 0:03:00]}  cxd4 {[%clk 0:03:01]} 7. cxd4 {[%clk 0:02:59]}  Nh6 {[%clk 0:03:01]} 8. Bxh6 {[%clk 0:02:41]}  Qxb2 {[%clk 0:03:00]} 9. Nbd2 {[%clk 0:02:21]}  gxh6 {[%clk 0:03:00]} 10. Rb1 {[%clk 0:02:14]}  Qxa2 {[%clk 0:02:53]} 11. O-O {[%clk 0:02:13]}  Bg7 {[%clk 0:02:43]} 12. Nb3 {[%clk 0:01:59]}  O-O {[%clk 0:02:36]} 13. Qd3 {[%clk 0:01:45]}  Qa3 {[%clk 0:02:34]} 14. Bd1 {[%clk 0:01:37]}  f5 {[%clk 0:02:15]} 15. exf6 {[%clk 0:01:36]}  Bxf6 {[%clk 0:02:16]} 16. Bc2 {[%clk 0:01:34]}  Qe7 {[%clk 0:02:16]} 17. Nc5 {[%clk 0:01:24]}  Qg7 {[%clk 0:02:08]} 18. Rfd1 {[%clk 0:01:23]}  b6 {[%clk 0:01:58]} 19. Ba4 {[%clk 0:01:19]}  Nxd4 {[%clk 0:01:47]} 20. Nxd4 {[%clk 0:01:12]}  bxc5 {[%clk 0:01:39]} 21. Bc6 {[%clk 0:01:10]}  Bxd4 {[%clk 0:01:34]} 22. Bxa8 {[%clk 0:01:09]}  Rxf2 {[%clk 0:01:34]} 23. Qg3 {[%clk 0:00:48]}  Rf3+ {[%clk 0:01:24]} 24. Rxd4 {[%clk 0:00:45]}  Rxg3 {[%clk 0:01:25]} 25. Rd2 {[%clk 0:00:43]}  Ra3 {[%clk 0:01:21]} 26. Rb8 {[%clk 0:00:42]}  Ra1+ {[%clk 0:01:16]} 27. Kf2 {[%clk 0:00:41]}  Qf8+ {[%clk 0:01:17]} 28. Kg3 {[%clk 0:00:37]}  Qd6+ {[%clk 0:01:17]} 0-1

[Event "November 21 Late 2023"]
[Site "https://www.chess.com"]
[Date "2023.11.21"]
[Round "7"]
[White "Yeletsky, Ivan"]
[Black "Milchev, Nikolay"]
[Result "1-0"]
[Board "29"]
[TimeControl "180+1"]
[WhiteFideId "24180327"]
[BlackFideId "2906090"]
[WhiteElo "2358"]
[BlackElo "2449"]
[WhiteTeam "RUS"]
[BlackTeam "ENG"]
[WhiteClock "0:00:41"]
[BlackClock "0:00:42"]

1. e4 {[%clk 0:03:00]}  e5 {[%clk 0:03:00]} 2. Nf3 {[%clk 0:03:00]}  Nc6 {[%clk 0:03:00]} 3. Bc4 {[%clk 0:02:58]}  Nf6 {[%clk 0:03:00]} 4. d3 {[%clk 0:02:58]}  h6 {[%clk 0:03:00]} 5. O-O {[%clk 0:02:54]}  d6 {[%clk 0:03:01]} 6. Nc3 {[%clk 0:02:50]}  g5 {[%clk 0:03:00]} 7. a4 {[%clk 0:02:50]}  Bg7 {[%clk 0:02:59]} 8. a5 {[%clk 0:02:50]}  a6 {[%clk 0:02:59]} 9. Nd5 {[%clk 0:02:36]}  Nxd5 {[%clk 0:02:58]} 10. Bxd5 {[%clk 0:02:37]}  Ne7 {[%clk 0:02:58]} 11. Bb3 {[%clk 0:02:37]}  O-O {[%clk 0:02:56]} 12. d4 {[%clk 0:02:31]}  Ng6 {[%clk 0:02:55]} 13. dxe5 {[%clk 0:02:31]}  dxe5 {[%clk 0:02:52]} 14. Qxd8 {[%clk 0:02:27]}  Rxd8 {[%clk 0:02:52]} 15. Be3 {[%clk 0:02:28]}  g4 {[%clk 0:02:48]} 16. Nd2 {[%clk 0:02:24]}  Nf4 {[%clk 0:02:48]} 17. Rfe1 {[%clk 0:02:20]}  Bd7 {[%clk 0:02:31]} 18. Ba4 {[%clk 0:02:01]}  Bf8 {[%clk 0:02:13]} 19. Bxd7 {[%clk 0:01:57]}  Rxd7 {[%clk 0:02:14]} 20. Nb3 {[%clk 0:01:52]}  Ne6 {[%clk 0:02:08]} 21. Kf1 {[%clk 0:01:44]}  Rad8 {[%clk 0:02:07]} 22. Ke2 {[%clk 0:01:38]}  Nf4+ {[%clk 0:01:51]} 23. Bxf4 {[%clk 0:01:37]}  exf4 {[%clk 0:01:52]} 24. f3 {[%clk 0:01:38]}  h5 {[%clk 0:01:49]} 25. h3 {[%clk 0:01:33]}  g3 {[%clk 0:01:40]} 26. Rad1 {[%clk 0:01:30]}  f6 {[%clk 0:01:29]} 27. Rxd7 {[%clk 0:01:25]}  Rxd7 {[%clk 0:01:30]} 28. Rd1 {[%clk 0:01:25]}  Rxd1 {[%clk 0:01:30]} 29. Kxd1 {[%clk 0:01:26]}  Kf7 {[%clk 0:01:31]} 30. Ke2 {[%clk 0:01:21]}  b5 {[%clk 0:01:27]} 31. axb6 {[%clk 0:01:11]}  cxb6 {[%clk 0:01:28]} 32. Kd3 {[%clk 0:01:11]}  Ke6 {[%clk 0:01:26]} 33. Nd4+ {[%clk 0:01:11]}  Ke5 {[%clk 0:01:21]} 34. Nc6+ {[%clk 0:01:10]}  Kd6 {[%clk 0:01:21]} 35. Nb4 {[%clk 0:01:10]}  a5 {[%clk 0:01:20]} 36. Nd5 {[%clk 0:01:10]}  b5 {[%clk 0:01:19]} 37. Nxf4 {[%clk 0:01:09]}  h4 {[%clk 0:01:16]} 38. Ng6 {[%clk 0:01:09]}  Bh6 {[%clk 0:01:15]} 39. Nxh4 {[%clk 0:01:09]}  Bc1 {[%clk 0:01:15]} 40. Nf5+ {[%clk 0:01:10]}  Kc5 {[%clk 0:01:15]} 41. Kc3 {[%clk 0:00:40]}  a4 {[%clk 0:01:13]} 42. b4+ {[%clk 0:00:40]}  axb3 {[%clk 0:01:05]} 43. cxb3 {[%clk 0:00:39]}  Bf4 {[%clk 0:01:03]} 44. h4 {[%clk 0:00:39]}  Be5+ {[%clk 0:01:03]} 45. Kc2 {[%clk 0:00:39]}  Kc6 {[%clk 0:01:00]} 46. h5 {[%clk 0:00:40]}  Kd7 {[%clk 0:00:42]} 47. h6 {[%clk 0:00:41]} 1-0